Cogmind - Beta 14 --- EXPLORER MODE // 2024.09.28 @ 19:17:27 Player: JustYourOrdinaryPerson Result: Destroyed by G-47 Trooper with Particle Gun Performance ------------- Evolutions (2) 1000 Regions Visited (4) 800 Robots Destroyed (13) 65 Value Destroyed (299) 299 Prototype IDs (0) 0 Alien Tech Used (0) 0 Bonus (52) 52 TOTAL SCORE: 2216 Bonus ------- Follower Combat Kills 52 Cogmind --------- Core Integrity 0/550 Matter 118/300 Energy 275/275 System Corruption 0% Temperature Cool (9) Movement Core (150) Ox2 Location -8/Materials Parts ------- > --- POWER (3) -------- Deuterium Engine > --- PROPULSION (2) --- (None) > --- UTILITY (4) ------ (None) > --- WEAPON (3) ------- (None) > --- INVENTORY (5) ---- Huge Storage Unit Light Armor Plating Heavy EM Pulse Gun Mini Grenade Launcher Mining Laser Peak State ------------ > --- POWER ------------ Ion Engine Deuterium Engine Light Nuclear Core > --- PROPULSION ------- Light Treads Armored Treads > --- UTILITY ---------- Medium Storage Unit Large Storage Unit ECM Suite Hardened Medium Armor Plating > --- WEAPON ----------- Improved EM Pulse Cannon Particle Cannon Assault Rifle > --- INVENTORY -------- Backup Power I Light Treads Huge Storage Unit Light Armor Plating Heavy EM Pulse Gun Assault Rifle Mini Grenade Launcher Mining Laser [Rating: 25] Favorites ----------- Power Ion Engine Engine Ion Engine Power Core Light Nuclear Core Propulsion Light Treads Treads Light Treads Utility Medium Storage Unit Device ECM Suite Storage Medium Storage Unit Protection Light Armor Plating Weapon Assault Rifle Energy Gun Heavy EM Pulse Gun Energy Cannon Particle Cannon Ballistic Gun Assault Rifle Launcher Mini Grenade Launcher Build | -11 -10 -10 -9 -8 ------- Run | Yrd Mat Min Mat Mat Slots Evolved 5 | . 1 . 2 2 Power 2 | . . . 1 1 Propulsion . | . . . . . Utility 2 | . 1 . . 1 Weapon 1 | . . . 1 . Parts Attached 20 | 7 4 . 2 7 Power 3 | 1 . . . 2 Engine 2 | 1 . . . 1 Core 1 | . . . . 1 Reactor . | . . . . . Propulsion 3 | 2 . . . 1 Treads 3 | 2 . . . 1 Leg . | . . . . . Wheel . | . . . . . Hover . | . . . . . Flight . | . . . . . Utility 8 | 2 4 . . 2 Device 1 | . 1 . . . Storage 4 | 1 2 . . 1 Processor . | . . . . . Hackware . | . . . . . Protection 3 | 1 1 . . 1 Artifact . | . . . . . Weapon 6 | 2 . . 2 2 Energy Gun 1 | . . . 1 . Energy Cannon 2 | . . . . 2 Ballistic Gun 2 | 2 . . . . Ballistic Cannon . | . . . . . Launcher 1 | . . . 1 . Special Weapon . | . . . . . Impact Weapon . | . . . . . Slashing Weapon . | . . . . . Piercing Weapon . | . . . . . Special Melee Weapon . | . . . . . Unidentified Prototypes . | . . . . . Parts Lost 9 | . . . . 9 Power 2 | . . . . 2 Propulsion 2 | . . . . 2 Utility 2 | . . . . 2 Weapon 3 | . . . . 3 Highest Loss Streak 9 | . . . . 9 To Critical Strikes . | . . . . . Average Slot Usage (%) 96 | . 100 100 87 93 Engine 12 | . 12 12 10 14 Core 2 | . . . . 6 Treads 20 | . 25 25 20 15 Device 10 | . 12 12 10 7 Storage 13 | . 12 12 10 15 Protection 10 | . 12 12 10 7 Energy Gun 2 | . . . 3 6 Energy Cannon 2 | . . . . 7 Ballistic Gun 18 | . 25 25 20 8 Peak Build Rating 25 | 7 8 8 10 25 Average Rating 10 | 6 8 8 9 19 On Entrance 6 | . 7 8 8 10 Naked Turns . | . . . . . Heaviest Build 72 | 22 24 24 27 72 Greatest Support 40 | 40 40 40 40 40 Greatest Overweight (x) 22 | 5 . . . 22 Average Overweight (x) . | . . . . 1 Largest Inventory Capacity 25 | 10 25 10 10 15 Average Capacity 11 | 9 10 10 10 14 Most Carried 8 | 1 1 2 3 8 Average Carried 1 | . . 1 2 6 Final Capacity 10 | 10 10 10 10 5 Final Carried 5 | 1 1 2 3 5 Class Distribution -------------------- 75% | Hacker-Mutant 24% | Hacker-Tank Dominant Class ---------------- Hacker-Mutant | -10/Materials Hacker-Mutant | -10/Mines Hacker-Tank | -9/Materials Hacker-Tank | -8/Materials Resources | -11 -10 -10 -9 -8 ----------- Run | Yrd Mat Min Mat Mat Matter Collected 482 | 255 101 . 63 63 Remotely . | . . . . . Salvage Created 394 | . 117 . 87 190 Parts 26 | . 13 . 6 7 Haulers Intercepted . | . . . . . Recyclers Shooed . | . . . . . Parts Field Recycled . | . . . . . Retrieved Matter . | . . . . . Parts Self-Destructed . | . . . . . Prevented . | . . . . . Kills | -11 -10 -10 -9 -8 ------- Run | Yrd Mat Min Mat Mat Combat Hostiles Destroyed 9 | . 4 . 2 3 Guns 8 | . 4 . 2 2 Cannons 1 | . . . . 1 Classes Destroyed 5 | . 3 . 1 1 Worker 1 | . 1 . . . Watcher 3 | . 2 . 1 . Swarmer 4 | . 4 . . . Grunt 4 | . . . 2 2 Sentry 1 | . . . . 1 Best Kill Streak 3 | . 3 . 2 2 Combat Bots Only 2 | . 2 . 2 2 Max Kills in Single Turn 1 | . 1 . 1 1 Gunslinging . | . . . . . Exploded . | . . . . . Melee . | . . . . . Uniques/NPCs Destroyed . | . . . . . Combat | -11 -10 -10 -9 -8 -------- Run | Yrd Mat Min Mat Mat Hostile Shots Fired 138 | . 13 . 3 122 Missed 23 | . 2 . 1 20 Damage Taken 1512 | . 51 . 35 1426 Core 563 | . . . 7 556 Absorbed by Shields . | . . . . . Ignored by Resistances 668 | . 39 . 21 608 Core Remaining (%) 99 | 100 . 100 98 . Volleys Fired 34 | . 18 . 4 12 Largest 3 | . 2 . 3 3 Hottest 157 | . 40 . 85 157 Shots Fired 84 | . 36 . 12 36 Gun 62 | . 36 . 12 14 Cannon 22 | . . . . 22 Launcher . | . . . . . Special . | . . . . . Kinetic 56 | . 36 . 8 12 Thermal 12 | . . . . 12 Explosive . | . . . . . Electromagnetic 16 | . . . 4 12 Robot Hit Streak 10 | . 9 . 5 10 Robot Miss Streak 3 | . 3 . 2 3 Penetration Max . | . . . . . Secondary Targets . | . . . . . Shots Hit Robots 59 | . 25 . 7 27 Core Hits 22 | . 9 . 5 8 Critical Kills . | . . . . . Critical Parts Destroyed . | . . . . . Critical Strikes . | . . . . . Melee Attacks . | . . . . . Impact . | . . . . . Slashing . | . . . . . Piercing . | . . . . . Sneak Attacks . | . . . . . Combat Hostiles . | . . . . . Follow-up Attacks . | . . . . . Damage Inflicted 1018 | . 328 . 121 569 Guns 589 | . 328 . 121 140 Cannons 429 | . . . . 429 Explosions . | . . . . . Melee . | . . . . . Ramming . | . . . . . Kinetic 493 | . 328 . 51 114 Thermal 164 | . . . . 164 Explosive . | . . . . . Electromagnetic 361 | . . . 70 291 Impact . | . . . . . Slashing . | . . . . . Piercing . | . . . . . Highest Corruption . | . . . . . Average Corruption . | . . . . . Corruption Purged . | . . . . . Corruption Blocked . | . . . . . Overload Shots . | . . . . . Overflow Damage 26 | . . . . 26 Projectiles 26 | . . . . 26 Explosions . | . . . . . Melee . | . . . . . Knockbacks . | . . . . . Impact . | . . . . . Kinetic . | . . . . . Secondary . | . . . . . Self-Inflicted Damage . | . . . . . Shots . | . . . . . Rammed . | . . . . . Targets Rammed . | . . . . . Kicked . | . . . . . Crushed . | . . . . . Highest Temperature 1102 | . . . 30 1102 Average Temperature 403 | . . . 14 454 Received Heat Transfer 489 | . . . 12 477 Effects 43 | . . . . 43 Shutdowns 11 | . . . . 11 Energy Bleed 2 | . . . . 2 Interference 2 | . . . . 2 Matter Decay 6 | . . . . 6 Short Circuit 5 | . . . . 5 Damage (minor) 4 | . . . . 4 Damage (major) 9 | . . . . 9 Damage (core) 4 | . . . . 4 Siege Activations . | . . . . . Robots Corrupted . | . . . . . Combat Hostiles . | . . . . . Parts Fried 3 | . . . 1 2 Impact Corruptions . | . . . . . Robots Melted . | . . . . . Combat Hostiles . | . . . . . Parts Melted . | . . . . . Heat Transferred 296 | . . . . 296 Parts Sabotaged . | . . . . . Parts Stolen . | . . . . . Parts Stripped . | . . . . . Power Chain Reactions . | . . . . . Alert | -11 -10 -10 -9 -8 ------- Run | Yrd Mat Min Mat Mat Peak Influence 122 | . 72 4 122 95 Initial 36 | . . 4 1 36 Average 11 | . 9 4 49 27 Maximum Alert Level . | . . . . . Low Security (%) 100 | 100 100 100 100 100 Level 1 . | . . . . . Level 2 . | . . . . . Level 3 . | . . . . . Level 4 . | . . . . . Level 5 . | . . . . . High Security . | . . . . . Max Security . | . . . . . Squads Dispatched 1 | . . . 1 . Investigation . | . . . . . Extermination . | . . . . . Reinforcement 1 | . . . 1 . Assault . | . . . . . Garrison . | . . . . . Intercept . | . . . . . Searches Triggered . | . . . . . Construction Impeded . | . . . . . Haulers Reinforced . | . . . . . Active Scanning Responses . | . . . . . Cargo Convoy Interrupts . | . . . . . Stealth | -11 -10 -10 -9 -8 --------- Run | Yrd Mat Min Mat Mat Distress Signals 2 | . 1 . . 1 Communications Jammed . | . . . . . Distress Signals . | . . . . . Times Spotted 26 | . 8 . 6 12 Peak Tracking Total 5 | . 2 . 2 5 Tactical Retreats 1 | . 1 . . . Traps | -11 -10 -10 -9 -8 ------- Run | Yrd Mat Min Mat Mat Traps Triggered 1 | . . . 1 . Indirectly . | . . . . . Trap Hack Attempts . | . . . . . Triggered . | . . . . . Disarmed . | . . . . . Reprogrammed . | . . . . . Reused . | . . . . . Traps Extracted . | . . . . . Installed . | . . . . . Triggered . | . . . . . Machines | -11 -10 -10 -9 -8 ---------- Run | Yrd Mat Min Mat Mat Machines Disabled . | . . . . . Max in Single Turn . | . . . . . Machines Repaired . | . . . . . Machines Dismantled . | . . . . . Machines Sabotaged . | . . . . . Overloaded Fab Kills . | . . . . . Hacking | -11 -10 -10 -9 -8 --------- Run | Yrd Mat Min Mat Mat Machines Accessed 6 | . 3 . 1 2 Terminals 5 | . 3 . 1 1 Fabricators . | . . . . . Repair Stations 1 | . . . . 1 Recycling Units . | . . . . . Scanalyzers . | . . . . . Garrison Access . | . . . . . Total Hacks 15 | . 9 . 2 4 Successful 9 | . 6 . 1 2 Failed 6 | . 3 . 1 2 Catastrophic . | . . . . . Database Lockouts . | . . . . . Manual 6 | . 4 . 2 . Terminals 13 | . 9 . 2 2 Fabricators . | . . . . . Repair Stations 2 | . . . . 2 Recycling Units . | . . . . . Scanalyzers . | . . . . . Garrison Access . | . . . . . Terminal Hacks 8 | . 6 . 1 1 Level Access Points 1 | . . . 1 . Branch Access Points 2 | . 1 . . 1 Unreport Threat 2 | . 2 . . . Locate Traps 1 | . 1 . . . Zone Layout 2 | . 2 . . . Fabricator Hacks . | . . . . . Repair Station Hacks 1 | . . . . 1 Refit 1 | . . . . 1 Recycling Unit Hacks . | . . . . . Scanalyzer . | . . . . . Garrison Access Hacks . | . . . . . Unauthorized Hacks . | . . . . . Terminals . | . . . . . Fabricators . | . . . . . Repair Stations . | . . . . . Recycling Units . | . . . . . Scanalyzers . | . . . . . Garrison Access . | . . . . . Data Cores Recovered . | . . . . . Used . | . . . . . Hacking Detections 4 | . 2 . 1 1 Full Trace Events . | . . . . . Feedback Events . | . . . . . Feedback Blocked . | . . . . . Robot Schematics Acquired . | . . . . . Robots Built . | . . . . . Authchips . | . . . . . Time . | . . . . . Total Robot Build Rating . | . . . . . Part Schematics Acquired . | . . . . . Parts Built . | . . . . . Authchips . | . . . . . Time . | . . . . . Total Part Build Rating . | . . . . . Parts Repaired . | . . . . . Time . | . . . . . Parts Recycled . | . . . . . Recycled Matter . | . . . . . Retrieved Matter . | . . . . . Retrieved Components . | . . . . . Parts Scanalyzed . | . . . . . Part Schematics Acquired . | . . . . . Parts Damaged . | . . . . . Bothacking | -11 -10 -10 -9 -8 ------------ Run | Yrd Mat Min Mat Mat Used RIF Installer . | . . . . . Robots Hacked . | . . . . . Non-combat . | . . . . . Combat . | . . . . . Robot Hacks Applied . | . . . . . Relay Couplers Released . | . . . . . Fabnet Peak Effective % . | . . . . . Robots Rewired . | . . . . . Allies Hacked . | . . . . . Hacks Repelled . | . . . . . Allies | -11 -10 -10 -9 -8 -------- Run | Yrd Mat Min Mat Mat Total Allies 1 | . . 1 . . Largest Group 1 | . . 1 1 1 Highest-Rated Group 31 | . . 31 31 31 Highest-Rated Ally 31 | . . 31 31 31 Total Orders . | . . . . . Ally Attacks 10 | . . . 10 . Total Damage 107 | . . . 107 . Kills 3 | . . . 3 . Allies Corrupted . | . . . . . Allies Melted . | . . . . . Intel | -11 -10 -10 -9 -8 ------- Run | Yrd Mat Min Mat Mat Robot Analysis Total . | . . . . . Derelict Logs Recovered . | . . . . . Drone Launches . | . . . . . Drone Recoveries . | . . . . . Exploration | -11 -10 -10 -9 -8 ------------- Run | Yrd Mat Min Mat Mat Turns Passed 3680 | 1576 992 99 210 803 Spaces Moved 855 | 356 215 55 110 119 Core 13 | 7 . . . 6 Treads 842 | 349 215 55 110 113 Legs . | . . . . . Wheels . | . . . . . Hover . | . . . . . Flight . | . . . . . Fastest Speed 50 | 50 160 160 160 150 Average Speed 174 | 161 160 160 160 260 Slowest Speed 1150 | 300 160 160 160 1150 Overloaded Moves . | . . . . . Propulsion Burnouts . | . . . . . Robots Hopped . | . . . . . Cave-ins Triggered . | . . . . . Exploration Rate (%) 22 | 34 32 21 14 11 Regions Visited 4 Branch Regions 1 Pre-discovered Areas . | . . . . . Known Exits Taken 4 | 1 1 1 1 . Unknown Exits Taken . | . . . . . Scrap Searched . | . . . . . Spaces Dug . | . . . . . Terrain Destroyed . | . . . . . Melee . | . . . . . Projectile . | . . . . . AOE . | . . . . . Terrain Rammed . | . . . . . Walls Destroyed . | . . . . . Machines Disabled . | . . . . . Actions | -11 -10 -10 -9 -8 --------- Run | Yrd Mat Min Mat Mat Total 2966 | 1355 827 66 135 583 Wait 2053 | 992 590 11 19 441 Move 851 | 355 214 54 109 119 Hop . | . . . . . Pick Up 2 | 1 . 1 . . Fast Attach 13 | 7 . . 2 4 Attach 2 | . 2 . . . Detach 5 | . 1 . 1 3 Swap 5 | . 2 . . 3 Drop 1 | . . . . 1 Fire 34 | . 18 . 4 12 Melee . | . . . . . Ram . | . . . . . Kick . | . . . . . Crush . | . . . . . Escape Stasis . | . . . . . Rewire . | . . . . . Trap . | . . . . . Miscellaneous . | . . . . . Route ------- -11/Scrapyard -10/Materials (discovered 3 exits: *Mat x2 / *Min) -10/Mines -9/Materials (discovered 3 exits: *Mat x3) -8/Materials (discovered 1 exit: Sto) History --------- Turn | Location | Event 24 | -11/Scrapyard | Identified exit to Materials 24 | -11/Scrapyard | Discovered exit to Materials (range 15) 1577 | -11/Scrapyard | Entered Materials 1577 | -10/Materials | Evolved 1 slot: Utility x1 1598 | -10/Materials | Build established: Hacker-Mutant 1640 | -10/Materials | Identified exit to Mines 2301 | -10/Materials | Identified exit to Materials 2301 | -10/Materials | Discovered exit to Materials (range 17) 2555 | -10/Materials | Discovered exit to Materials (range 14) 2569 | -10/Materials | Entered Mines 2620 | -10/Mines | Received a Mining Laser from a helpful Derelict 2633 | -10/Mines | Discovered exit to Materials (range 12) 2668 | -10/Mines | Entered Materials 2668 | -9/Materials | Accompanied by 1 ally 2668 | -9/Materials | Evolved 2 slots: Power x1, Weapon x1 2689 | -9/Materials | Identified exit to Materials 2878 | -9/Materials | Entered another Materials area 2878 | -8/Materials | Accompanied by 1 ally 2878 | -8/Materials | Evolved 2 slots: Power x1, Utility x1 3026 | -8/Materials | Identified exit to Storage 3034 | -8/Materials | Build established: Hacker-Tank 3626 | -8/Materials | Core integrity fell below 50% 3630 | -8/Materials | Core integrity fell below 20% 3681 | -8/Materials | Destroyed by G-47 Trooper with Particle Gun Last Messages --------------- 03634_ Slug penetrates Wall. 03634_ Critical hit (Burn: +37). 03637_ Penetrated by Slug. 03638_ Assault Rifle destroyed. 03641_ Slug penetrates Wall. 03645_ Broken Lgt. Treads destroyed. 03645_ Penetrated by Slug. 03651_ Broken Ion Engine destroyed. 03651_ Penetrated by Slug. 03651_ Broken Arm. Treads destroyed. 03655_ Broken Imp. EM Pulse Cannon destroyed. 03657_ Penetrated by Slug. 03660_ Slug penetrates Wall. 03664_ Penetrated by Slug. 03673_ Particle Cannon destroyed. 03675_ Penetrated by Slug. 03676_ Dropped Lrg. Storage Unit. 03680_ Slug penetrates G-47 Trooper. 03680_ K-01 Serf suffers critical hit (Destroy). 03680_ K-01 Serf destroyed. Map ----- +----------------------------------------------------+ | ?????????????????????????????????????????????????? | | ?????????????????????????????????????????????????? | | ?????????????????????????????????????????????????? | | ?????????????????????????????????????????????????? | | ?????????????????????????????????????????????????? | | ?????????????????????????????????????????????????? | | ?????????????????????????????????????????????????? | | ###??????????????????????????????????????????????? | | #??????????????????????????????????????????????? | | #??????????????????????????????????????????????? | | #??????????????????????????????????????????????? | | " #??????????????????????????????????????????????? | | " #??????????????????????????????????????????????? | | " #??????????????????????????????????????????????? | | #?? ???????????????????????????????????????????? | | #?? ?????????????????????????????????????????? | | ###?? ?????????????????????????????????????????? | | #??? #????????????????????????????>????????????? | | #??# #?????????????????????????????????????????? | | #??# #?????????????????????????????????????????? | | #??# #?????????#???????????????????????????????? | | #??# #???????? #?????????? ????# ##???????????? | | #??# #???????? #???#######+### #???????????? | | #??# #??????? #???# k g#???????????? | | #### #??????? #???# a Y l ????????? | | #?????? #???# = @ #???????????? | | ##????? #???#!%*####### #???????????? | | !! ## ??? #???# [ #???????????????????????? | | ## ?? ????#!!*#???????????????????????? | | ] #?? ?????## = ##??????????????????????? | | #####/######## g #??????????????????????? | | T" %*% h #??????????????????????? | | ! %%= % #??????????????????????? | | ![ #??????????????????????? | | ########## ##### #??????????????????????? | | ?????????# #???##### #??????????????????????? | | ?????????#!!!! ]#???????? #??????????????????????? | | ?????????#!!!!]]#???????? #??????????????????????? | | ?????????########???????? #??????????????????????? | | ????????????????????????? #??????????????????????? | | ????????????????????????? #??????????????????????? | | ????????????????????????? ???????????????????????? | | ????????????????????????? ???????????????????????? | | ?????????????????????????????????????????????????? | | ?????????????????????????????????????????????????? | | ?????????????????????????????????????????????????? | | ?????????????????????????????????????????????????? | | ?????????????????????????????????????????????????? | | ?????????????????????????????????????????????????? | | ?????????????????????????????????????????????????? | +----------------------------------------------------+ Best States ------------- Heat Dissipation 31 Energy Generation 28 Energy Capacity 485 Matter Stores 300 Matter Capacity 300 Sight Range 16 Terrain Scan Density 10 ECM Strength 1 Armor Coverage 225 Resistance: KI 35 Resistance: TH 35 Resistance: EX 35 Resistance: EM 35 Resistance: I 35 Resistance: S 35 Resistance: P 35 Evasion (%) 40 Recoil Reduction 2 Offensive Hacking 20 Item Schematics ----------------- None Robot Schematics ------------------ None Fabricated ------------ Nothing Alien Tech Used ----------------- None Achievements -------------- None Challenges ------------ None Game ------ Seed ImprovedBarrageDoomcannon Manual? 0 Play Time 00:12:58 Cumulative 21.2 hours Start 2024.09.28 @ 19:04:33 End 2024.09.28 @ 19:17:27 Sessions 1 Manual Loads 0 Difficulty Explorer Special Mode None Game No. 39 Rogue 2 Adventurer 2 Explorer 35 Win Type - Total 0 Types 0/0/0/0/0/0/0/0/0 Lore% 30 Gallery% 27 Achievement% 24 Wizard Run 0 Options --------- Layout 2 ASCII 0 Keyboard 1 Movement Numpad Keybinds 1 Fullscreen 2 Font 24/X11 Map View 50x44 Zoom Use 4% Tactical HUD 1 Map Filters NONE Filters NONE Steam 0 RUN: 27834d10-8574-45d4-acf5-749c0bd6225a